bitfinex/quotes_BTCUSD_20250218
["timestamp","ask_amount","ask_price","bid_price","bid_amount"]
[1739839422069,0.31264601,95796.0,95795.0,0.0013406]
[1739839423367,0.31264601,95796.0,95795.0,0.0003406]
[1739839423566,0.31264601,95796.0,95795.0,0.0023406]
[1739839424149,0.15606401,95796.0,95795.0,0.0023406]
[1739839424551,0.31264601,95796.0,95795.0,0.0023406]
[1739839425128,0.15606401,95796.0,95795.0,0.0023406]
[1739839425758,0.31264601,95796.0,95795.0,0.0023406]
[1739839427635,0.31264601,95796.0,95795.0,0.0003406]
[1739839427835,0.31264601,95796.0,95795.0,0.0023406]
[1739839429383,0.31264601,95796.0,95795.0,0.0003406]
[1739839429583,0.15606401,95796.0,95795.0,0.0023406]
[1739839429789,0.00606401,95796.0,95795.0,0.0023406]
[1739839430020,0.16264601,95796.0,95795.0,0.0023406]
[1739839430454,0.16264601,95796.0,95795.0,0.0003406]
[1739839430836,0.16264601,95796.0,95795.0,0.0043406]
[1739839431512,0.00606401,95796.0,95795.0,0.0043406]
[1739839432002,0.10435769,95797.0,95795.0,0.0043406]
[1739839432257,0.00505817,95796.0,95795.0,0.0043406]
[1739839432489,0.00505817,95796.0,95795.0,0.0033406]
[1739839432860,0.00505817,95796.0,95795.0,0.0013406]
[1739839433078,0.00505817,95796.0,95795.0,0.0043406]
[1739839434869,0.00505817,95796.0,95795.0,0.21507866]
[1739839435973,0.00505817,95796.0,95795.0,0.21407866]
[1739839436340,0.00505817,95796.0,95795.0,0.21707866]
[1739839436514,0.00505817,95796.0,95795.0,0.21407866]
[1739839436714,0.00505817,95796.0,95795.0,0.21507866]
[1739839436924,0.00505817,95796.0,95795.0,0.21807866]
[1739839437147,0.00505817,95796.0,95795.0,0.21407866]
[1739839438051,0.00505817,95796.0,95795.0,0.21907866]
[1739839438479,0.00505817,95796.0,95795.0,0.21607866]
[1739839438839,0.00505817,95796.0,95795.0,0.21907866]
[1739839439068,0.00505817,95796.0,95795.0,0.21607866]
[1739839439288,0.00505817,95796.0,95795.0,0.22007866]
[1739839439730,0.00505817,95796.0,95795.0,0.21607866]
[1739839439962,0.00505817,95796.0,95795.0,0.21507866]
[1739839440202,0.00505817,95796.0,95795.0,0.22107866]
[1739839440751,0.00505817,95796.0,95795.0,0.21507866]
[1739839440994,0.00505817,95796.0,95795.0,0.22107866]
[1739839441480,0.00505817,95796.0,95795.0,0.21507866]
[1739839441723,0.00505817,95796.0,95795.0,0.22107866]
[1739839442205,0.00505817,95796.0,95795.0,0.21707866]
[1739839442443,0.00505817,95796.0,95795.0,0.22107866]
[1739839444174,0.00081152,95796.0,95795.0,0.22107866]
[1739839444422,0.10435769,95797.0,95796.0,0.156582]
[1739839444652,0.10435769,95797.0,95796.0,0.22866637]
[1739839446596,0.10435769,95797.0,95796.0,0.23166637]
[1739839446800,0.10440177,95797.0,95796.0,0.22866637]
[1739839447005,0.10440177,95797.0,95796.0,0.23366637]
[1739839447226,0.10440177,95797.0,95796.0,0.23766637]
[1739839447432,0.10440177,95797.0,95796.0,0.23266637]
[1739839447815,0.10440177,95797.0,95796.0,0.23866637]
[1739839448233,0.10440177,95797.0,95796.0,0.23266637]
[1739839448377,0.10440177,95797.0,95796.0,0.22866637]
[1739839448589,0.10440177,95797.0,95796.0,0.23366637]
[1739839449201,0.10440177,95797.0,95796.0,0.23666637]
[1739839449599,0.10440177,95797.0,95796.0,0.23366637]
[1739839449799,0.10440177,95797.0,95796.0,0.23266637]
[1739839450196,0.10440177,95797.0,95796.0,0.23866637]
[1739839451073,0.10440177,95797.0,95796.0,0.23266637]
[1739839451273,0.10440177,95797.0,95796.0,0.23866637]
[1739839451468,0.10440177,95797.0,95796.0,0.23466637]
[1739839451766,0.10440177,95797.0,95796.0,0.23866637]
[1739839453579,0.10457207,95797.0,95796.0,0.23866637]
[1739839457280,0.10457207,95797.0,95796.0,0.23266637]
[1739839457679,0.10457207,95797.0,95796.0,0.23866637]
[1739839457881,0.10457207,95797.0,95796.0,0.23466637]
[1739839458202,0.10457207,95797.0,95796.0,0.23866637]
[1739839459055,0.3659959,95800.0,95796.0,0.23866637]
[1739839459263,0.3659959,95800.0,95799.0,0.156577]
[1739839459720,0.40950524,95800.0,95797.0,0.2149943]
[1739839459886,0.40950524,95800.0,95797.0,0.0584143]
[1739839460199,0.40950524,95800.0,95798.0,0.156579]
[1739839460822,0.40950524,95800.0,95797.0,0.0584143]
[1739839461063,0.40950524,95800.0,95798.0,0.1973677]
[1739839461472,0.40950524,95800.0,95799.0,0.156577]
[1739839462290,0.1879871,95800.0,95799.0,0.156577]
[1739839462840,0.1879871,95800.0,95799.0,0.162577]
[1739839463392,0.1879871,95800.0,95799.0,0.156577]
[1739839463520,0.1879871,95800.0,95799.0,0.23773884]
[1739839464550,0.1879871,95800.0,95799.0,0.24173884]
[1739839465456,0.1879871,95800.0,95799.0,0.23773884]
[1739839466144,0.1881574,95800.0,95799.0,0.24173884]
[1739839466352,0.1881574,95800.0,95799.0,0.23173884]
[1739839466698,0.04367964,95800.0,95799.0,0.23773884]
[1739839466875,0.40966894,95800.0,95799.0,0.23773884]
[1739839467699,0.40966894,95800.0,95799.0,0.24173884]
[1739839477291,0.40966894,95800.0,95799.0,0.24207944]
[1739839480007,0.40966894,95800.0,95799.0,0.08550244]
[1739839480202,0.40966894,95800.0,95799.0,0.0103406]
[1739839480952,0.40966894,95800.0,95799.0,0.0003406]
[1739839481375,0.40966894,95800.0,95799.0,0.0103406]
[1739839481579,0.40966894,95800.0,95799.0,0.1669176]
[1739839485261,0.40966894,95800.0,95799.0,0.0103406]
[1739839492759,0.40966894,95800.0,95799.0,0.0063406]
[1739839492928,0.40966894,95800.0,95799.0,0.0043406]
[1739839493131,0.40966894,95800.0,95799.0,0.0103406]
[1739839493379,0.40966894,95800.0,95799.0,0.06074908]
[1739839495717,0.40966894,95800.0,95799.0,0.05674908]
[1739839496179,0.40966894,95800.0,95799.0,0.06074908]
[1739839496514,0.40966894,95800.0,95799.0,0.05474908]
[1739839496715,0.40966894,95800.0,95799.0,0.06074908]
[1739839497306,0.40966894,95800.0,95799.0,0.05474908]
[1739839497651,0.40966894,95800.0,95799.0,0.06074908]
[1739839497775,0.40966894,95800.0,95799.0,0.05674908]
[1739839497982,0.40966894,95800.0,95799.0,0.0103406]
[1739839498208,0.40966894,95800.0,95799.0,0.0043406]
[1739839498537,0.40966894,95800.0,95799.0,0.0003406]
[1739839498764,0.40966894,95800.0,95799.0,0.0043406]
[1739839498921,0.40966894,95800.0,95799.0,0.0003406]
[1739839499315,0.40966894,95800.0,95799.0,0.03809058]
[1739839499720,0.40966894,95800.0,95799.0,0.04409058]
[1739839500388,0.40966894,95800.0,95799.0,0.0043406]
[1739839500592,0.40966894,95800.0,95799.0,0.0103406]
[1739839500963,0.40966894,95800.0,95799.0,0.0003406]
[1739839501171,0.56624494,95800.0,95799.0,0.0003406]
[1739839501372,0.56624494,95800.0,95799.0,0.0103406]
[1739839501583,0.40966894,95800.0,95799.0,0.0063406]
[1739839501817,0.56624494,95800.0,95799.0,0.03587148]
[1739839501973,0.56624494,95800.0,95799.0,0.0103406]
[1739839502172,0.56624494,95800.0,95799.0,0.0063406]
[1739839502622,0.56624494,95800.0,95799.0,0.0103406]
[1739839502839,0.56624494,95800.0,95799.0,0.0003406]
[1739839503175,0.56624494,95800.0,95799.0,0.0063406]
[1739839503582,0.56624494,95800.0,95799.0,0.0003406]
[1739839503885,0.56624494,95800.0,95799.0,0.0063406]
[1739839504287,0.56624494,95800.0,95799.0,0.0043406]
[1739839504868,0.56624494,95800.0,95799.0,0.0103406]
[1739839505987,0.56624494,95800.0,95799.0,0.0003406]
[1739839506395,0.56624494,95800.0,95799.0,0.0063406]
[1739839506826,0.56624494,95800.0,95799.0,0.0003406]
[1739839507237,0.56624494,95800.0,95799.0,0.0063406]
[1739839507440,0.56624494,95800.0,95799.0,0.0103406]
[1739839507647,0.56624494,95800.0,95799.0,0.0063406]
[1739839508027,0.56624494,95800.0,95799.0,0.0103406]
[1739839508184,0.56624494,95800.0,95799.0,0.0003406]
[1739839508386,0.40966894,95800.0,95799.0,0.0003406]
[1739839508585,0.40966894,95800.0,95799.0,0.0043406]
[1739839508796,0.40966894,95800.0,95799.0,0.2881176]
[1739839509018,0.40966894,95800.0,95799.0,0.33787588]
[1739839509649,0.40966894,95800.0,95799.0,0.34387588]
[1739839510017,0.40966894,95800.0,95799.0,0.33787588]
[1739839510240,0.40966894,95800.0,95799.0,0.33987588]
[1739839510640,0.40966894,95800.0,95799.0,0.33787588]
[1739839510927,0.40966894,95800.0,95799.0,0.33387588]
[1739839511065,0.40966894,95800.0,95799.0,0.33987588]
[1739839511251,0.40966894,95800.0,95799.0,0.34387588]
[1739839511615,0.40966894,95800.0,95799.0,0.33987588]
[1739839511751,0.40966894,95800.0,95799.0,0.18329888]
[1739839511964,0.40966894,95800.0,95799.0,0.10949888]
[1739839512249,0.40966894,95800.0,95799.0,0.10549888]
[1739839512453,0.40966894,95800.0,95799.0,0.05609888]
[1739839512601,0.40966894,95800.0,95799.0,0.05009888]
[1739839512820,0.40966894,95800.0,95799.0,0.05609888]
[1739839513297,0.40966894,95800.0,95799.0,0.05009888]
[1739839513489,0.40966894,95800.0,95799.0,0.05409888]
[1739839513695,0.40966894,95800.0,95799.0,0.21267588]
[1739839514127,0.40966894,95800.0,95799.0,0.21067588]
[1739839514329,0.40966894,95800.0,95799.0,0.20667588]
[1739839514590,0.40966894,95800.0,95799.0,0.21267588]
[1739839514764,0.40966894,95800.0,95799.0,0.06009888]
[1739839515341,0.40966894,95800.0,95799.0,0.05609888]
[1739839516554,0.40966894,95800.0,95799.0,0.05009888]
[1739839516734,0.56624494,95800.0,95799.0,0.05409888]
[1739839516963,0.40966894,95800.0,95799.0,0.0103406]
[1739839517342,0.40966894,95800.0,95799.0,0.0043406]
[1739839517700,0.40966894,95800.0,95799.0,0.0103406]
[1739839517912,0.40966894,95800.0,95799.0,0.02310128]
[1739839518229,0.40966894,95800.0,95799.0,0.0003406]
[1739839518585,0.40966894,95800.0,95799.0,0.0063406]
[1739839519793,0.40966894,95800.0,95799.0,0.0003406]
[1739839520235,0.40966894,95800.0,95799.0,0.0063406]
[1739839520437,0.40966894,95800.0,95799.0,0.0103406]
[1739839520640,0.40966894,95800.0,95799.0,0.0043406]
[1739839520850,0.40966894,95800.0,95799.0,0.0063406]
[1739839521066,0.40966894,95800.0,95799.0,0.03172108]
[1739839521271,0.40966894,95800.0,95799.0,0.02172108]
[1739839521678,0.40966894,95800.0,95799.0,0.03172108]
[1739839521838,0.40966894,95800.0,95799.0,0.02772108]
[1739839522246,0.40966894,95800.0,95799.0,0.03172108]
[1739839523460,0.40966894,95800.0,95799.0,0.0043406]
[1739839523829,0.40966894,95800.0,95799.0,0.0103406]
[1739839524038,0.40966894,95800.0,95799.0,0.0063406]
[1739839524241,0.40966894,95800.0,95799.0,0.0003406]
[1739839524453,0.40966894,95800.0,95799.0,0.0043406]
[1739839524604,0.40966894,95800.0,95799.0,0.04337918]
[1739839525035,0.40966894,95800.0,95799.0,0.04137918]
[1739839525231,0.40966894,95800.0,95799.0,0.04737918]
[1739839525448,0.40966894,95800.0,95799.0,0.04337918]
[1739839525650,0.40966894,95800.0,95799.0,0.04737918]
[1739839526078,0.40966894,95800.0,95799.0,0.0103406]
[1739839526640,0.40966894,95800.0,95799.0,0.0043406]
[1739839526845,0.40966894,95800.0,95799.0,0.0103406]
[1739839527430,0.40966894,95800.0,95799.0,0.0043406]
[1739839527660,0.40966894,95800.0,95799.0,0.0103406]
[1739839527863,0.40966894,95800.0,95799.0,0.0063406]
[1739839528069,0.40966894,95800.0,95799.0,0.0043406]
[1739839528278,0.40966894,95800.0,95799.0,0.0003406]
[1739839528491,0.40966894,95800.0,95799.0,0.04297848]
[1739839528695,0.40966894,95800.0,95799.0,0.04697848]
[1739839528825,0.40966894,95800.0,95799.0,0.04297848]
[1739839529244,0.40966894,95800.0,95799.0,0.04697848]
[1739839529692,0.40966894,95800.0,95799.0,0.04097848]
[1739839529987,0.40966894,95800.0,95799.0,0.04697848]
[1739839530430,0.40966894,95800.0,95799.0,0.03697848]
[1739839530730,0.40966894,95800.0,95799.0,0.04697848]
[1739839531111,0.40966894,95800.0,95799.0,0.04297848]
[1739839531313,0.40966894,95800.0,95799.0,0.04097848]
[1739839531518,0.40966894,95800.0,95799.0,0.03697848]
[1739839531730,0.40966894,95800.0,95799.0,0.04297848]
[1739839531937,0.41845947,95800.0,95799.0,0.04697848]
[1739839533001,0.41845947,95800.0,95799.0,0.04097848]
[1739839533200,0.41845947,95800.0,95799.0,0.04697848]
[1739839533445,0.41845947,95800.0,95799.0,0.0103406]
[1739839533649,0.41845947,95800.0,95799.0,0.0003406]
[1739839533849,0.41845947,95800.0,95799.0,0.0043406]
[1739839534047,0.41845947,95800.0,95799.0,0.0063406]
[1739839534402,0.41845947,95800.0,95799.0,0.0003406]
[1739839534606,0.41845947,95800.0,95799.0,0.0043406]
[1739839534851,0.41845947,95800.0,95799.0,0.0063406]
[1739839535169,0.41845947,95800.0,95799.0,0.0103406]
[1739839536207,0.41845947,95800.0,95799.0,0.0043406]
[1739839536360,0.41845947,95800.0,95799.0,0.0103406]
[1739839536780,0.41845947,95800.0,95799.0,0.22143408]
[1739839536955,0.00896083,95800.0,95799.0,0.45063773]
[1739839537303,0.00896083,95800.0,95799.0,0.45263773]
[1739839537304,0.0001703,95800.0,95799.0,0.45263773]
[1739839537724,0.0001703,95800.0,95799.0,0.45063773]
[1739839537921,0.0001703,95800.0,95799.0,0.44663773]
[1739839538121,0.0001703,95800.0,95799.0,0.45263773]
[1739839538345,0.0001703,95800.0,95799.0,0.45963773]
[1739839538487,0.0001703,95800.0,95799.0,0.45263773]
[1739839539735,0.0001703,95800.0,95799.0,0.45963773]
[1739839540135,0.0001703,95800.0,95799.0,0.44663773]
[1739839540306,0.0001703,95800.0,95799.0,0.45363773]
[1739839540526,0.0001703,95800.0,95799.0,0.78154883]
[1739839540725,0.0001703,95800.0,95799.0,0.78854883]
[1739839541171,0.0001703,95800.0,95799.0,0.78154883]
[1739839541582,0.0001703,95800.0,95799.0,0.78854883]
[1739839541999,0.0001703,95800.0,95799.0,0.78154883]
[1739839543103,0.0001703,95800.0,95799.0,0.77454883]
[1739839543306,0.0001703,95800.0,95799.0,0.78854883]
[1739839544751,0.0001703,95800.0,95799.0,0.78154883]
[1739839545348,0.0001703,95800.0,95799.0,0.77454883]
[1739839545813,0.0001703,95800.0,95799.0,0.7821268]
[1739839546198,0.0001703,95800.0,95799.0,0.7891268]
[1739839546430,0.0001703,95800.0,95799.0,0.7821268]
[1739839546572,0.0001703,95800.0,95799.0,0.7891268]
[1739839546773,0.0001703,95800.0,95799.0,0.7961268]
[1739839546984,0.0001703,95800.0,95799.0,0.7891268]
[1739839547923,0.0001703,95800.0,95799.0,0.7961268]
[1739839549551,0.0001703,95800.0,95799.0,0.7821268]
[1739839550013,0.0001703,95800.0,95799.0,0.7961268]
[1739839552040,0.0001703,95800.0,95799.0,0.9461268]
[1739839553005,0.0001703,95800.0,95799.0,0.9391268]
[1739839553535,0.0001703,95800.0,95799.0,0.9461268]
[1739839555368,0.0001703,95800.0,95799.0,1.4849268]
[1739839556960,0.0001703,95800.0,95799.0,1.50557692]
[1739839557164,0.0001703,95800.0,95799.0,1.52857692]
[1739839562515,0.0001703,95800.0,95799.0,1.54811244]
[1739839564726,0.0001703,95800.0,95799.0,1.56811244]
[1739839565381,3e-07,95800.0,95799.0,1.56811244]
[1739839568552,0.0001703,95807.0,95806.0,0.429266]
[1739839568553,6e-07,95807.0,95806.0,0.429266]
[1739839568765,6e-07,95807.0,95806.0,0.55476965]
[1739839568896,2.4e-07,95807.0,95806.0,0.55476965]
[1739839569106,0.23816965,95813.0,95812.0,0.306556]
[1739839569308,0.23816965,95813.0,95812.0,0.60015076]
[1739839569522,9.5e-07,95814.0,95813.0,0.3012]
[1739839569726,9.5e-07,95814.0,95813.0,0.42370365]
[1739839570592,9.5e-07,95814.0,95813.0,1.34452824]
[1739839570998,9.5e-07,95814.0,95813.0,1.33752824]
[1739839571206,9.5e-07,95814.0,95813.0,1.44703189]
[1739839571415,9.5e-07,95814.0,95813.0,1.45403189]
[1739839572044,9.5e-07,95814.0,95813.0,1.44703189]
[1739839572259,9.5e-07,95814.0,95813.0,1.45403189]
[1739839572466,9.5e-07,95814.0,95813.0,1.44703189]
[1739839572671,9.5e-07,95814.0,95813.0,1.45403189]
[1739839573088,9.5e-07,95814.0,95813.0,1.44703189]
[1739839573293,0.0001703,95823.0,95822.0,0.47324]
[1739839573294,2.5e-07,95823.0,95822.0,0.47324]
[1739839573496,8.323e-05,95823.0,95822.0,1.46245475]
[1739839574101,8.323e-05,95823.0,95822.0,1.48199027]
[1739839574308,2.3e-07,95823.0,95822.0,1.48899027]
[1739839575353,0.0251825,95867.0,95828.0,0.023]
[1739839575574,8.299e-05,95865.0,95861.0,0.156476]
[1739839576015,0.00770759,95864.0,95861.0,0.156476]
[1739839576219,0.00770759,95864.0,95858.0,0.20864]
[1739839576410,0.00770759,95864.0,95859.0,0.1982078]
[1739839576567,0.37345079,95864.0,95859.0,0.1982078]
[1739839576768,0.37345079,95864.0,95859.0,0.0417288]
[1739839576975,0.37345079,95864.0,95856.0,0.156484]
[1739839577589,0.37345079,95864.0,95861.0,0.003]
[1739839577813,0.37345079,95864.0,95861.0,0.005]
[1739839578212,0.52992179,95864.0,95856.0,0.160484]
[1739839578451,0.191873,95863.0,95857.0,0.0577793]
[1739839578621,0.00770759,95864.0,95858.0,0.208641]
[1739839578779,8.299e-05,95865.0,95859.0,0.10250365]
[1739839578780,0.00771398,95862.0,95859.0,0.10250365]
[1739839578982,8.299e-05,95865.0,95860.0,0.156478]
[1739839579239,0.00771926,95864.0,95861.0,0.22750327]
[1739839579404,0.00771926,95864.0,95861.0,0.07102727]
[1739839579607,0.3657419,95864.0,95861.0,0.07102727]
[1739839579805,0.00771662,95863.0,95862.0,0.04029384]
[1739839580032,0.00771662,95863.0,95862.0,0.19676784]
[1739839581186,0.00771662,95863.0,95862.0,0.04029384]
[1739839581364,8.299e-05,95865.0,95864.0,0.156471]
[1739839581566,8.299e-05,95865.0,95864.0,0.3257128]
[1739839582604,8.299e-05,95865.0,95864.0,0.4567128]
[1739839583229,8.299e-05,95865.0,95864.0,0.9576239]
[1739839583816,8.299e-05,95865.0,95864.0,0.9516239]
[1739839584016,8.299e-05,95865.0,95864.0,0.97811196]
[1739839584216,8.299e-05,95865.0,95864.0,0.98511196]
[1739839584446,8.299e-05,95865.0,95864.0,0.97811196]
[1739839585025,8.299e-05,95865.0,95864.0,0.96211196]
[1739839585449,8.299e-05,95865.0,95864.0,0.96265354]
[1739839585670,8.299e-05,95865.0,95864.0,0.69465354]
[1739839586081,8.299e-05,95865.0,95864.0,0.68765354]
[1739839586544,8.299e-05,95865.0,95864.0,0.69465354]
[1739839586716,8.299e-05,95865.0,95864.0,0.68765354]
[1739839587374,8.299e-05,95865.0,95864.0,0.68711196]
[1739839587774,8.299e-05,95865.0,95864.0,0.68011196]
[1739839588135,8.299e-05,95865.0,95864.0,0.68711196]
[1739839592058,8.299e-05,95865.0,95864.0,0.6676239]
[1739839594145,0.156449,95878.0,95868.0,0.156464]
[1739839594345,0.156444,95881.0,95871.0,0.15646]
[1739839594668,0.00777939,95880.0,95874.0,0.156454]
[1739839594918,0.00777939,95880.0,95875.0,0.04029384]
[1739839595096,0.37346079,95880.0,95875.0,0.04029384]
[1739839596882,0.37346079,95880.0,95875.0,0.04729384]
[1739839597079,0.37346079,95880.0,95875.0,0.05429384]
[1739839598075,0.37346079,95880.0,95875.0,0.21074684]
[1739839598289,0.37346079,95880.0,95876.0,0.05218625]
[1739839598583,0.37346079,95880.0,95875.0,0.014]
[1739839599175,0.37346079,95880.0,95875.0,0.007]
[1739839599393,0.37346079,95880.0,95876.0,0.007]
[1739839599737,0.37346079,95880.0,95875.0,0.163453]
[1739839600245,0.37346079,95880.0,95876.0,0.007]
[1739839600427,0.37346079,95880.0,95877.0,0.06008667]
[1739839601280,0.37346079,95880.0,95877.0,0.21653667]
[1739839601739,0.37346079,95880.0,95877.0,0.06008667]
[1739839601962,0.37346079,95880.0,95877.0,0.21653667]
[1739839602163,0.37346079,95880.0,95878.0,0.156447]
[1739839602366,0.37346079,95880.0,95879.0,0.04694532]
[1739839602923,0.00777939,95880.0,95879.0,0.14944897]
[1739839603322,8.297e-05,95881.0,95880.0,0.156445]
[1739839603543,8.297e-05,95881.0,95880.0,0.25894865]
[1739839603708,8.297e-05,95881.0,95880.0,0.31731142]
[1739839604887,8.297e-05,95881.0,95880.0,0.32431142]
[1739839606315,8.297e-05,95881.0,95880.0,0.31731142]
[1739839606494,8.297e-05,95881.0,95880.0,0.33131142]
[1739839606993,0.00025317,95881.0,95880.0,0.33131142]
[1739839614766,0.00025317,95881.0,95880.0,0.40911142]
[1739839615172,0.00025317,95881.0,95880.0,0.40211142]
[1739839615590,0.00025317,95881.0,95880.0,0.40911142]
[1739839616203,0.00025317,95881.0,95880.0,0.40211142]
[1739839616523,0.00025317,95881.0,95880.0,0.40911142]
[1739839616742,0.00025317,95881.0,95880.0,0.40211142]
[1739839616967,0.00025317,95881.0,95880.0,0.39511142]
[1739839617182,0.00025317,95881.0,95880.0,0.40211142]
[1739839617380,0.00025317,95881.0,95880.0,0.40911142]
[1739839619829,0.00025317,95881.0,95880.0,0.40945162]
[1739839620413,0.00025317,95881.0,95880.0,0.41702312]
[1739839624603,0.00025317,95881.0,95880.0,0.41002312]
[1739839625349,0.00025317,95881.0,95880.0,0.40302312]
[1739839626351,0.00025317,95881.0,95880.0,0.41002312]
[1739839626563,0.00025317,95881.0,95880.0,0.41702312]
[1739839627114,0.00025317,95881.0,95880.0,0.41002312]
[1739839627283,0.00025317,95881.0,95880.0,0.41702312]
[1739839627742,0.15,95902.0,95883.0,0.208587]
[1739839628167,0.00785692,95901.0,95883.0,0.208587]
[1739839628387,0.00785692,95901.0,95881.0,0.16259032]
[1739839628794,0.04748209,95901.0,95893.0,0.156423]
[1739839629019,0.41312429,95901.0,95893.0,0.156423]
[1739839629244,0.37349912,95901.0,95900.0,0.156412]
[1739839629466,0.37346732,95901.0,95900.0,0.156412]
[1739839629685,0.41233857,95901.0,95900.0,0.156412]
[1739839630486,0.41233857,95901.0,95900.0,0.159412]
[1739839630635,0.41233857,95901.0,95900.0,0.19071502]
[1739839630859,0.41233857,95901.0,95900.0,0.18771502]
[1739839631246,0.41233857,95901.0,95900.0,0.19471502]
[1739839631871,0.41250867,95901.0,95900.0,0.19471502]
[1739839632287,0.41250867,95901.0,95900.0,0.20171502]
[1739839632497,0.41250867,95901.0,95900.0,0.19471502]
[1739839632748,0.41250867,95901.0,95900.0,0.18771502]
[1739839632901,0.41250867,95901.0,95900.0,0.20171502]
[1739839633366,0.41241654,95901.0,95900.0,0.20171502]
[1739839636154,0.41241654,95901.0,95900.0,0.014]
[1739839636431,0.44613147,95901.0,95900.0,0.014]
[1739839636833,0.59613147,95901.0,95900.0,0.014]
[1739839637282,0.156443,95881.0,95868.0,0.0469]
[1739839637511,0.156443,95881.0,95864.0,0.0003404]
[1739839637512,0.5221628,95881.0,95864.0,0.0003404]
[1739839637871,0.52986114,95881.0,95864.0,0.0003404]
[1739839638074,0.52986114,95881.0,95869.0,0.156463]
[1739839638284,0.52986114,95881.0,95867.0,0.156466]
[1739839638638,0.52986114,95881.0,95868.0,0.156464]
[1739839639117,0.52986114,95881.0,95880.0,0.0033402]
[1739839639327,0.52986114,95881.0,95880.0,0.0003402]
[1739839639785,0.52986114,95881.0,95880.0,0.0023402]
[1739839639988,0.52986114,95881.0,95880.0,0.0063402]
[1739839640531,0.52986114,95881.0,95880.0,0.0023402]
[1739839640744,0.52986114,95881.0,95880.0,0.0063402]
[1739839641391,0.52986114,95881.0,95880.0,0.0043402]
[1739839641595,0.52986114,95881.0,95880.0,0.0063402]
[1739839642021,0.52986114,95881.0,95880.0,0.0043402]
[1739839642196,0.52986114,95881.0,95880.0,0.0063402]
[1739839642716,0.52986114,95881.0,95880.0,0.0023402]
[1739839642921,0.52986114,95881.0,95880.0,0.0003402]
[1739839643066,0.52986114,95881.0,95880.0,0.0043402]
[1739839643269,0.52986114,95881.0,95880.0,0.0063402]
[1739839645710,0.52986114,95881.0,95880.0,0.0043402]
[1739839645915,0.52986114,95881.0,95880.0,0.0063402]
[1739839652690,0.52986114,95881.0,95880.0,0.0003402]
[1739839653032,0.52986114,95881.0,95880.0,0.0043402]
[1739839653265,0.52986114,95881.0,95880.0,0.0063402]
[1739839654960,0.52986114,95881.0,95880.0,0.0023402]
[1739839655177,0.52986114,95881.0,95880.0,0.0063402]
[1739839655316,0.52986114,95881.0,95880.0,0.0043402]
[1739839655514,0.52986114,95881.0,95880.0,0.0003402]
[1739839655716,0.52986114,95881.0,95880.0,0.0023402]
[1739839656008,0.67986114,95881.0,95880.0,0.0023402]
[1739839656247,0.71357607,95881.0,95880.0,0.0063402]
[1739839656867,0.71357607,95881.0,95880.0,0.0023402]
[1739839657070,0.71357607,95881.0,95880.0,0.0003402]
[1739839657248,0.71357607,95881.0,95880.0,0.0023402]
[1739839658614,0.71357607,95881.0,95880.0,0.0063402]
[1739839660800,0.70637607,95881.0,95880.0,0.0063402]
[1739839661500,0.67266114,95881.0,95880.0,0.0063402]
[1739839662727,0.67266114,95881.0,95880.0,0.0023402]
[1739839662931,0.67266114,95881.0,95880.0,0.0043402]
[1739839663107,0.52341814,95881.0,95880.0,0.0043402]
[1739839663308,0.52341814,95881.0,95880.0,0.01978422]
[1739839664308,0.22432405,95881.0,95880.0,0.01978422]
[1739839664489,0.07432405,95881.0,95880.0,0.25302922]
[1739839664692,0.06662571,95881.0,95880.0,0.09658422]
[1739839664903,0.156434,95887.0,95880.0,0.09658422]
[1739839665112,0.5220979,95887.0,95881.0,0.05114322]
[1739839665334,0.3656639,95887.0,95881.0,0.05114322]
[1739839665533,0.3656639,95887.0,95880.0,0.24702922]
[1739839665739,0.3656639,95887.0,95880.0,0.25302922]
[1739839665987,0.3656639,95887.0,95880.0,0.25502922]
[1739839666133,0.3656639,95887.0,95880.0,0.09658422]
[1739839666341,0.3656639,95887.0,95881.0,0.03549822]
[1739839666549,0.3656639,95887.0,95881.0,0.001]
[1739839666752,0.3656639,95887.0,95880.0,0.09058422]
[1739839667149,0.5220979,95887.0,95880.0,0.09058422]
[1739839668058,0.3656639,95887.0,95881.0,0.001]
[1739839668464,0.3656639,95887.0,95881.0,0.07160282]
[1739839668894,0.5220989,95887.0,95881.0,0.07160282]
[1739839669276,0.5220989,95887.0,95881.0,0.07260282]
[1739839669677,0.5220989,95887.0,95881.0,0.07460282]
[1739839670636,0.156435,95886.0,95881.0,0.003]
[1739839671362,0.00772636,95885.0,95881.0,0.003]
[1739839671596,0.5220979,95887.0,95880.0,0.0771402]
[1739839671787,0.00772372,95884.0,95881.0,0.002]
[1739839671978,0.5220979,95887.0,95881.0,0.002]
[1739839671979,0.5220979,95887.0,95881.0,0.005]
[1739839672197,0.00772108,95883.0,95882.0,0.04969882]
[1739839672396,0.00772108,95883.0,95881.0,0.005]
[1739839672397,0.3656639,95887.0,95881.0,0.002]
[1739839672557,0.156443,95881.0,95880.0,0.0771402]
[1739839672754,0.156443,95881.0,95880.0,0.0801402]
[1739839672962,0.16416328,95881.0,95880.0,0.0801402]
[1739839673579,0.16416328,95881.0,95880.0,0.0033402]
[1739839673991,0.16416328,95881.0,95880.0,0.0003402]
[1739839675226,0.16416328,95881.0,95880.0,0.0063402]
[1739839675426,0.16416328,95881.0,95880.0,0.0043402]
[1739839675604,0.16416328,95881.0,95880.0,0.0003402]
[1739839675747,0.31416328,95881.0,95880.0,0.0023402]
[1739839675948,0.31416328,95881.0,95880.0,0.0053402]
[1739839676662,0.31416328,95881.0,95880.0,0.0033402]
[1739839677919,0.31416328,95881.0,95880.0,0.0053402]
[1739839681487,0.34787821,95881.0,95880.0,0.0053402]
[1739839682354,0.34787821,95881.0,95880.0,0.0003402]
[1739839682784,0.34787821,95881.0,95880.0,0.0023402]
[1739839682995,0.45038186,95881.0,95880.0,0.002]
[1739839683210,0.15647,95865.0,95864.0,0.0003404]
[1739839683417,0.5222267,95865.0,95864.0,0.0003404]
[1739839683634,0.52986199,95865.0,95864.0,0.0003404]
[1739839683865,0.56357692,95865.0,95864.0,0.0003404]
[1739839684500,0.56357692,95865.0,95864.0,0.00642337]
[1739839684906,0.56357692,95865.0,95864.0,0.00042337]
[1739839685108,0.56357692,95865.0,95864.0,0.00442337]
[1739839685338,0.56357692,95865.0,95864.0,0.00642337]
[1739839685526,0.56357692,95865.0,95864.0,0.00242337]
[1739839685660,0.52986199,95865.0,95864.0,0.00342337]
[1739839685866,0.52986199,95865.0,95864.0,0.00242337]
[1739839686304,0.52986199,95865.0,95864.0,0.00342337]
[1739839686522,0.52986199,95865.0,95864.0,0.00242337]
[1739839686730,0.26908541,95865.0,95864.0,0.00242337]
[1739839687130,0.42555541,95865.0,95864.0,0.00042337]
[1739839687387,0.42555541,95865.0,95864.0,0.00242337]
[1739839687584,0.26908541,95865.0,95864.0,0.09708975]
[1739839688027,0.26908541,95865.0,95864.0,0.09608975]
[1739839688201,0.42555541,95865.0,95864.0,0.08462337]
[1739839688407,0.42555541,95865.0,95864.0,0.08362337]
[1739839688658,0.26908541,95865.0,95864.0,0.08562337]
[1739839688855,0.26908541,95865.0,95864.0,0.08362337]
[1739839689007,0.26908541,95865.0,95864.0,0.08462337]
[1739839689206,0.42555541,95865.0,95864.0,0.08662337]